[Event "St Kilda East and Caulfield Chess Club T3 2025 Under 1600 Mondays"]
[Site "St Kilda East, Australia"]
[Date "2025.08.04"]
[Round "2.2"]
[White "Longe, Mathieu"]
[Black "O'Connor, Alistair"]
[Result "0-1"]
[TimeControl "60 minutes per player per game plus 10 secionds per move from move one"]
[WhiteElo "630"]
[BlackElo "1053"]

1. e4 {[%clk 01:00:07]} {[%emt 00:00:01]} e6 {[%clk 01:00:02]} {[%emt
00:00:08]} 2. d4 {[%clk 00:59:40]} {[%emt 00:00:36]} d5 {[%clk 01:00:00]}
{[%emt 00:00:13]} 3. e5 {[%clk 00:59:23]} {[%emt 00:00:28]} c5 {[%clk
00:59:55]} {[%emt 00:00:14]} 4. c3 {[%clk 00:58:48]} {[%emt 00:00:45]} Qb6
{[%clk 00:59:39]} {[%emt 00:00:25]} 5. Nf3 {[%clk 00:58:21]} {[%emt 00:00:37]}
Bd7 {[%clk 00:59:38]} {[%emt 00:00:12]} 6. Be2 {[%clk 00:57:00]} {[%emt
00:01:30]} Bb5 {[%clk 00:59:00]} {[%emt 00:00:48]} 7. O-O {[%clk 00:56:13]}
{[%emt 00:00:57]} Bxe2 {[%clk 00:58:39]} {[%emt 00:00:30]} 8. Qxe2 {[%clk
00:56:08]} {[%emt 00:00:14]} Nc6 {[%clk 00:58:38]} {[%emt 00:00:13]} 9. b3
{[%clk 00:54:29]} {[%emt 00:01:50]} Nge7 {[%clk 00:57:47]} {[%emt 00:01:00]} 10.
Qe3 {[%clk 00:53:55]} {[%emt 00:00:44]} Nf5 {[%clk 00:57:31]} {[%emt 00:00:26]}
11. Qd3 {[%clk 00:51:44]} {[%emt 00:02:21]} cxd4 {[%clk 00:57:20]} {[%emt
00:00:21]} 12. cxd4 {[%clk 00:51:25]} {[%emt 00:00:30]} Nfxd4 {[%clk 00:57:08]}
{[%emt 00:00:22]} 13. Nxd4 {[%clk 00:50:35]} {[%emt 00:01:00]} Qxd4 {[%clk
00:57:08]} {[%emt 00:00:10]} 14. Qxd4 {[%clk 00:50:28]} {[%emt 00:00:17]} Nxd4
{[%clk 00:57:11]} {[%emt 00:00:07]} 15. Nd2 {[%clk 00:50:05]} {[%emt 00:00:33]}
Bb4 {[%clk 00:55:43]} {[%emt 00:01:38]} 16. a3 {[%clk 00:48:36]} {[%emt
00:01:40]} Bc3 {[%clk 00:54:27]} {[%emt 00:01:25]} 17. Ra2 {[%clk 00:46:53]}
{[%emt 00:01:54]} Ne2+ {[%clk 00:53:55]} {[%emt 00:00:41]} 18. Kh1 {[%clk
00:47:00]} {[%emt 00:00:03]} Nxc1 {[%clk 00:53:20]} {[%emt 00:00:45]} 19. Rxc1
{[%clk 00:47:06]} {[%emt 00:00:04]} Bxe5 {[%clk 00:53:14]} {[%emt 00:00:17]} 20.
Rac2 {[%clk 00:46:57]} {[%emt 00:00:19]} O-O {[%clk 00:53:07]} {[%emt
00:00:16]} 21. g3 {[%clk 00:46:33]} {[%emt 00:00:34]} Rad8 {[%clk 00:52:02]}
{[%emt 00:01:15]} 22. f4 {[%clk 00:46:26]} {[%emt 00:00:18]} Bd6 {[%clk
00:51:52]} {[%emt 00:00:20]} 23. b4 {[%clk 00:46:18]} {[%emt 00:00:18]} f6
{[%clk 00:50:56]} {[%emt 00:01:05]} 24. Nf3 {[%clk 00:43:50]} {[%emt 00:02:38]}
Rfe8 {[%clk 00:50:36]} {[%emt 00:00:30]} 25. Nd4 {[%clk 00:42:45]} {[%emt
00:01:15]} a6 {[%clk 00:49:05]} {[%emt 00:01:41]} 26. f5 {[%clk 00:41:22]}
{[%emt 00:01:33]} e5 {[%clk 00:47:16]} {[%emt 00:01:59]} 27. Ne6 {[%clk
00:41:22]} {[%emt 00:00:10]} Rd7 {[%clk 00:47:19]} {[%emt 00:00:07]} 28. h4
{[%clk 00:35:33]} {[%emt 00:05:59]} h5 {[%clk 00:47:10]} {[%emt 00:00:19]} 29.
Nc5 {[%clk 00:25:27]} {[%emt 00:10:17]} Bxc5 {[%clk 00:46:40]} {[%emt
00:00:40]} 30. Rxc5 {[%clk 00:23:16]} {[%emt 00:02:20]} d4 {[%clk 00:46:37]}
{[%emt 00:00:14]} 31. Kg2 {[%clk 00:21:44]} {[%emt 00:01:41]} e4 {[%clk
00:45:08]} {[%emt 00:01:39]} 32. Kf2 {[%clk 00:21:36]} {[%emt 00:00:18]} e3+
{[%clk 00:44:44]} {[%emt 00:00:33]} 33. Ke1 {[%clk 00:20:29]} {[%emt 00:01:18]}
d3 {[%clk 00:44:39]} {[%emt 00:00:15]} 34. Rd1 {[%clk 00:17:49]} {[%emt
00:02:50]} Re5 {[%clk 00:44:06]} {[%emt 00:00:42]} 35. Rc3 {[%clk 00:17:31]}
{[%emt 00:00:29]} d2+ {[%clk 00:43:18]} {[%emt 00:00:58]} 36. Ke2 {[%clk
00:17:38]} {[%emt 00:00:03]} Rde7 {[%clk 00:43:17]} {[%emt 00:00:11]} 37. a4
{[%clk 00:16:23]} {[%emt 00:01:25]} Kf7 {[%clk 00:42:20]} {[%emt 00:01:06]} 38.
Rd3 {[%clk 00:15:24]} {[%emt 00:01:09]} g6 {[%clk 00:42:02]} {[%emt 00:00:28]}
39. fxg6+ {[%clk 00:15:17]} {[%emt 00:00:17]} Kxg6 {[%clk 00:42:01]} {[%emt
00:00:10]} 40. Rb1 {[%clk 00:14:11]} {[%emt 00:01:18]} Rc7 {[%clk 00:41:48]}
{[%emt 00:00:23]} 41. Rbb3 {[%clk 00:11:50]} {[%emt 00:02:31]} Rc1 {[%clk
00:41:38]} {[%emt 00:00:19]} 42. b5 {[%clk 00:10:41]} {[%emt 00:01:20]} Re1+
{[%clk 00:41:39]} {[%emt 00:00:08]} 43. Kf3 {[%clk 00:09:46]} {[%emt 00:01:06]}
d1=Q+ {[%clk 00:41:38]} {[%emt 00:00:12]} 44. Rxd1 {[%emt 00:00:11]} Rxd1
{[%emt 00:00:05]} 45. Rxe3 {[%clk 00:09:32]} {[%emt 00:00:08]} Rxe3+ {[%clk
00:41:29]} {[%emt 00:00:19]} 46. Kxe3 {[%clk 00:09:33]} {[%emt 00:00:09]} axb5
{[%clk 00:41:33]} {[%emt 00:00:06]} 47. axb5 {[%clk 00:09:31]} {[%emt
00:00:12]} Rb1 {[%clk 00:41:32]} {[%emt 00:00:11]} 48. Kd4 {[%emt 00:00:38]}
0-1

[Event "St Kilda East and Caulfield Chess Club T3 2025 Under 1600 Mondays"]
[Site "St Kilda East, Australia"]
[Date "2025.08.04"]
[Round "2.5"]
[White "Shore, Isaac"]
[Black "Hennessy, Rob"]
[Result "0-1"]
[TimeControl "60 minutes per player per game plus 10 secionds per move from move one"]
[WhiteElo "562"]
[BlackElo "979"]

1. d4 {[%emt 00:00:02]} d5 {[%clk 00:58:12]} {[%emt 00:01:55]} 2. c4 {[%clk
01:00:11]} {[%emt 00:00:08]} c6 {[%clk 00:57:57]} {[%emt 00:00:26]} 3. Nc3
{[%clk 01:00:06]} {[%emt 00:00:15]} Bf5 {[%clk 00:57:20]} {[%emt 00:00:46]} 4.
Nf3 {[%clk 00:59:11]} {[%emt 00:01:05]} e6 {[%clk 00:56:18]} {[%emt 00:01:12]}
5. Bd2 {[%clk 00:57:59]} {[%emt 00:01:22]} Nf6 {[%clk 00:56:12]} {[%emt
00:00:16]} 6. g3 {[%clk 00:56:53]} {[%emt 00:01:16]} Bd6 {[%clk 00:53:35]}
{[%emt 00:02:48]} 7. c5 {[%clk 00:55:52]} {[%emt 00:01:11]} Bc7 {[%clk
00:53:29]} {[%emt 00:00:16]} 8. Bg2 {[%clk 00:55:44]} {[%emt 00:00:18]} O-O
{[%clk 00:53:23]} {[%emt 00:00:16]} 9. O-O {[%clk 00:55:45]} {[%emt 00:00:09]}
Nbd7 {[%clk 00:51:30]} {[%emt 00:02:03]} 10. Re1 {[%clk 00:55:36]} {[%emt
00:00:19]} Re8 {[%clk 00:49:37]} {[%emt 00:02:03]} 11. Ng5 {[%clk 00:55:31]}
{[%emt 00:00:15]} h6 {[%clk 00:49:05]} {[%emt 00:00:42]} 12. e4 {[%clk
00:55:17]} {[%emt 00:00:24]} Bg4 {[%clk 00:45:47]} {[%emt 00:03:28]} 13. Nf3
{[%clk 00:54:38]} {[%emt 00:00:49]} dxe4 {[%clk 00:43:57]} {[%emt 00:02:00]} 14.
Nxe4 {[%clk 00:54:24]} {[%emt 00:00:24]} Nxe4 {[%clk 00:43:26]} {[%emt
00:00:41]} 15. Rxe4 {[%clk 00:53:33]} {[%emt 00:01:01]} Nf6 {[%clk 00:42:53]}
{[%emt 00:00:43]} 16. Re1 {[%clk 00:52:04]} {[%emt 00:01:39]} Bxf3 {[%clk
00:42:16]} {[%emt 00:00:48]} 17. Bxf3 {[%clk 00:51:24]} {[%emt 00:00:49]} Qxd4
{[%clk 00:41:56]} {[%emt 00:00:30]} 18. Bc3 {[%clk 00:49:10]} {[%emt 00:02:24]}
Qxd1 {[%clk 00:40:05]} {[%emt 00:02:02]} 19. Rc1 {[%emt 00:00:23]} Qxe1+ 20.
Rxe1 {[%clk 00:48:56]} Nd5 {[%clk 00:39:02]} {[%emt 00:01:13]} 0-1

[Event "St Kilda East and Caulfield Chess Club T3 2025 Under 1600 Mondays"]
[Site "St Kilda East, Australia"]
[Date "2025.08.04"]
[Round "2.3"]
[White "Budianto, Youshan"]
[Black "Nguyen, Tai"]
[Result "1-0"]
[TimeControl "60 minutes per player per game plus 10 secionds per move from move one"]
[WhiteElo "1032"]
[BlackElo "749"]

1. e4 {[%clk 01:00:08]} e5 {[%clk 01:00:02]} {[%emt 00:00:08]} 2. Nf3 {[%clk
01:00:15]} {[%emt 00:00:03]} Nc6 {[%clk 01:00:06]} {[%emt 00:00:06]} 3. Bc4
{[%clk 01:00:18]} {[%emt 00:00:07]} Bc5 {[%clk 00:59:52]} {[%emt 00:00:23]} 4.
O-O {[%clk 01:00:04]} {[%emt 00:00:24]} Nf6 {[%clk 00:59:43]} {[%emt 00:00:19]}
5. d3 {[%clk 00:59:36]} {[%emt 00:00:38]} O-O {[%clk 00:59:29]} {[%emt
00:00:24]} 6. Bg5 {[%clk 00:59:39]} {[%emt 00:00:07]} d6 {[%clk 00:59:07]}
{[%emt 00:00:33]} 7. Nc3 {[%clk 00:59:41]} {[%emt 00:00:08]} h6 {[%clk
00:59:08]} {[%emt 00:00:08]} 8. Bh4 {[%clk 00:59:23]} {[%emt 00:00:29]} Be6
{[%clk 00:58:45]} {[%emt 00:00:33]} 9. Bb3 {[%clk 00:59:17]} {[%emt 00:00:16]}
Qe7 {[%clk 00:57:27]} {[%emt 00:01:28]} 10. Nd5 {[%clk 00:58:59]} {[%emt
00:00:28]} Bxd5 {[%clk 00:57:26]} {[%emt 00:00:10]} 11. exd5 {[%clk 00:58:54]}
{[%emt 00:00:15]} Nb4 {[%clk 00:55:25]} {[%emt 00:02:11]} 12. c3 {[%clk
00:58:34]} {[%emt 00:00:31]} Na6 {[%clk 00:53:08]} {[%emt 00:02:27]} 13. Re1
{[%clk 00:57:33]} {[%emt 00:01:11]} Qd8 {[%clk 00:50:07]} {[%emt 00:03:12]} 14.
d4 {[%clk 00:57:09]} {[%emt 00:00:34]} exd4 {[%clk 00:49:26]} {[%emt 00:00:50]}
15. cxd4 {[%clk 00:57:13]} {[%emt 00:00:06]} Bb6 {[%clk 00:48:59]} {[%emt
00:00:37]} 16. a4 {[%clk 00:56:36]} {[%emt 00:00:48]} c6 {[%clk 00:46:21]}
{[%emt 00:02:48]} 17. dxc6 {[%clk 00:56:31]} {[%emt 00:00:15]} bxc6 {[%clk
00:46:23]} {[%emt 00:00:07]} 18. d5 {[%clk 00:55:34]} {[%emt 00:01:07]} g5
{[%clk 00:43:54]} {[%emt 00:02:39]} 19. Nxg5 {[%clk 00:54:54]} {[%emt
00:00:50]} Nc7 {[%clk 00:37:44]} {[%emt 00:06:20]} 20. dxc6 {[%clk 00:54:40]}
{[%emt 00:00:23]} hxg5 {[%clk 00:37:18]} {[%emt 00:00:36]} 21. Bxg5 {[%clk
00:54:42]} {[%emt 00:00:09]} Kg7 {[%clk 00:28:45]} {[%emt 00:08:41]} 22. Qd3
{[%clk 00:53:15]} {[%emt 00:01:39]} Bxf2+ {[%clk 00:26:03]} {[%emt 00:02:50]}
23. Kxf2 {[%clk 00:51:23]} {[%emt 00:02:04]} Ng4+ {[%clk 00:25:28]} {[%emt
00:00:45]} 24. Kg1 {[%clk 00:51:31]} {[%emt 00:00:02]} Qxg5 {[%clk 00:25:32]}
{[%emt 00:00:05]} 25. Qd4+ {[%clk 00:51:07]} {[%emt 00:00:35]} Nf6 {[%clk
00:24:20]} {[%emt 00:01:22]} 26. Re3 {[%clk 00:50:47]} {[%emt 00:00:30]} Qc5
{[%clk 00:20:18]} {[%emt 00:04:11]} 27. Rg3+ {[%clk 00:50:15]} {[%emt
00:00:44]} Kh6 {[%clk 00:19:50]} {[%emt 00:00:34]} 28. Qxc5 {[%clk 00:50:05]}
{[%emt 00:00:23]} dxc5 {[%clk 00:19:58]} {[%emt 00:00:03]} 29. Rf1 {[%clk
00:50:00]} {[%emt 00:00:15]} Nh5 {[%clk 00:19:19]} {[%emt 00:00:48]} 30. Rh3
{[%clk 00:49:44]} {[%emt 00:00:27]} Kg6 {[%clk 00:17:12]} {[%emt 00:02:12]} 31.
Bc2+ {[%emt 00:01:23]} Kh6 {[%clk 00:12:38]} {[%emt 00:03:23]} 32. Rf5 {[%clk
00:49:43]} {[%emt 00:00:25]} Kg7 {[%clk 00:10:30]} {[%emt 00:02:17]} 33. Rhxh5
{[%clk 00:49:44]} {[%emt 00:00:09]} Ne6 {[%clk 00:10:10]} {[%emt 00:00:31]} 34.
Rf3 {[%clk 00:49:10]} {[%emt 00:00:44]} Rh8 {[%clk 00:08:38]} {[%emt 00:01:42]}
35. Rg3+ {[%clk 00:48:59]} {[%emt 00:00:21]} Kf6 {[%clk 00:07:31]} {[%emt
00:01:17]} 36. Rf5+ {[%clk 00:48:35]} {[%emt 00:00:34]} Ke7 {[%clk 00:07:32]}
{[%emt 00:00:09]} 37. Bb3 {[%clk 00:48:08]} {[%emt 00:00:37]} Rhf8 {[%clk
00:06:54]} {[%emt 00:00:48]} 38. Bxe6 {[%clk 00:48:03]} {[%emt 00:00:15]} fxe6
{[%clk 00:06:54]} {[%emt 00:00:10]} 39. Rxc5 {[%clk 00:48:05]} {[%emt
00:00:08]} Kd6 {[%clk 00:06:53]} {[%emt 00:00:12]} 40. Rgc3 {[%clk 00:48:03]}
{[%emt 00:00:12]} Rac8 {[%clk 00:06:38]} {[%emt 00:00:22]} 41. c7 {[%clk
00:48:02]} {[%emt 00:00:13]} Rf7 {[%clk 00:06:41]} {[%emt 00:00:07]} 42. h4
{[%clk 00:47:35]} {[%emt 00:00:37]} Rcxc7 {[%clk 00:06:32]} {[%emt 00:00:19]}
43. Rxc7 {[%clk 00:47:37]} {[%emt 00:00:08]} Rxc7 {[%clk 00:06:41]} {[%emt
00:00:02]} 44. Rxc7 {[%clk 00:47:36]} {[%emt 00:00:12]} Kxc7 {[%clk 00:06:33]}
{[%emt 00:00:17]} 45. h5 {[%clk 00:47:44]} {[%emt 00:00:02]} Kd6 {[%clk
00:06:33]} {[%emt 00:00:10]} 46. h6 {[%clk 00:47:46]} {[%emt 00:00:08]} e5
{[%clk 00:06:41]} {[%emt 00:00:03]} 47. h7 {[%clk 00:47:52]} {[%emt 00:00:04]}
e4 {[%clk 00:06:50]} {[%emt 00:00:01]} 48. h8=Q {[%clk 00:47:38]} {[%emt
00:00:14]} e3 {[%clk 00:06:57]} {[%emt 00:00:11]} 49. Qd4+ {[%clk 00:47:37]}
{[%emt 00:00:11]} Kc6 {[%clk 00:07:04]} {[%emt 00:00:03]} 50. Qxe3 {[%clk
00:47:37]} {[%emt 00:00:11]} Kd5 {[%emt 00:00:11]} 1-0

[Event "St Kilda East and Caulfield Chess Club T3 2025 Under 1600 Mondays"]
[Site "St Kilda East, Australia"]
[Date "2025.08.04"]
[Round "2.4"]
[White "Nash, Paul"]
[Black "Fineberg, Leo"]
[Result "1-0"]
[TimeControl "60 minutes per player per game plus 10 secionds per move from move one"]
[WhiteElo "1009"]
[BlackElo "631"]

1. e4 {[%clk 01:00:09]} {[%emt 00:08:30]} c5 {[%clk 01:00:02]} {[%emt
00:00:08]} 2. c3 {[%clk 01:00:13]} {[%emt 00:00:06]} d6 {[%clk 01:00:05]}
{[%emt 00:00:07]} 3. d4 {[%clk 01:00:11]} {[%emt 00:00:12]} b6 {[%clk
00:59:45]} {[%emt 00:00:31]} 4. Bb5+ {[%clk 00:59:08]} {[%emt 00:01:12]} Bd7
{[%clk 00:59:30]} {[%emt 00:00:24]} 5. Bxd7+ {[%clk 00:59:15]} {[%emt
00:00:03]} Nxd7 {[%clk 00:59:24]} {[%emt 00:00:17]} 6. Nf3 {[%clk 00:57:57]}
{[%emt 00:01:28]} Ngf6 {[%clk 00:59:17]} {[%emt 00:00:17]} 7. Qe2 {[%clk
00:54:55]} {[%emt 00:03:11]} e6 {[%clk 00:58:20]} {[%emt 00:01:08]} 8. O-O
{[%clk 00:54:49]} {[%emt 00:00:16]} Be7 {[%clk 00:58:25]} {[%emt 00:00:05]} 9.
e5 {[%clk 00:44:59]} {[%emt 00:10:00]} Nd5 {[%clk 00:57:56]} {[%emt 00:00:39]}
10. c4 {[%clk 00:44:04]} {[%emt 00:01:05]} Nb4 {[%clk 00:57:35]} {[%emt
00:00:31]} 11. a3 {[%clk 00:43:51]} {[%emt 00:00:24]} Nc6 {[%clk 00:56:56]}
{[%emt 00:00:48]} 12. Bf4 {[%clk 00:38:25]} {[%emt 00:05:35]} Qc7 {[%clk
00:55:25]} {[%emt 00:01:43]} 13. Nc3 {[%clk 00:35:33]} {[%emt 00:03:02]} cxd4
{[%clk 00:55:14]} {[%emt 00:00:20]} 14. Nb5 {[%clk 00:35:30]} {[%emt 00:00:14]}
Qb8 {[%clk 00:53:45]} {[%emt 00:01:37]} 15. exd6 {[%clk 00:35:04]} {[%emt
00:00:37]} Bf8 {[%clk 00:53:46]} {[%emt 00:00:09]} 16. Nc7+ {[%clk 00:34:29]}
{[%emt 00:00:44]} Kd8 {[%clk 00:53:50]} {[%emt 00:00:06]} 17. Ng5 {[%clk
00:28:05]} {[%emt 00:06:34]} e5 {[%clk 00:52:51]} {[%emt 00:01:10]} 18. Nxf7+
{[%clk 00:26:14]} {[%emt 00:02:01]} Kc8 {[%clk 00:52:14]} {[%emt 00:00:47]} 19.
Nxh8 {[%clk 00:25:48]} {[%emt 00:00:35]} exf4 {[%clk 00:51:31]} {[%emt
00:00:52]} 20. Qe8+ {[%clk 00:24:56]} {[%emt 00:01:01]} Kb7 {[%clk 00:50:51]}
{[%emt 00:00:52]} 21. Qxd7 {[%clk 00:24:22]} {[%emt 00:00:44]} Bxd6 {[%clk
00:50:36]} {[%emt 00:00:22]} 22. Nxa8+ {[%clk 00:23:10]} {[%emt 00:01:24]} Kxa8
{[%clk 00:50:13]} {[%emt 00:00:35]} 23. Qxc6+ {[%clk 00:23:09]} {[%emt
00:00:11]} Qb7 {[%clk 00:50:03]} {[%emt 00:00:20]} 24. Qxb7+ {[%clk 00:23:17]}
{[%emt 00:00:02]} Kxb7 {[%clk 00:50:00]} {[%emt 00:00:12]} 25. Nf7 {[%clk
00:22:52]} {[%emt 00:00:34]} Be7 {[%clk 00:48:57]} {[%emt 00:01:13]} 26. Rfe1
{[%clk 00:22:25]} {[%emt 00:00:37]} Bf6 {[%clk 00:48:44]} {[%emt 00:00:22]} 27.
Ne5 {[%clk 00:22:18]} {[%emt 00:00:18]} Bxe5 {[%clk 00:48:34]} {[%emt
00:00:19]} 28. Rxe5 {[%clk 00:22:16]} {[%emt 00:00:13]} g6 {[%clk 00:48:38]}
{[%emt 00:00:06]} 29. Rd5 {[%clk 00:22:15]} {[%emt 00:00:11]} d3 {[%clk
00:47:54]} {[%emt 00:00:55]} 30. Rd1 {[%clk 00:21:53]} {[%emt 00:00:32]} d2
{[%clk 00:47:36]} {[%emt 00:00:27]} 31. R1xd2 {[%clk 00:21:42]} {[%emt
00:00:21]} f3 {[%clk 00:47:35]} {[%emt 00:00:11]} 32. gxf3 {[%emt 00:00:31]}
Ka6 {[%clk 00:47:28]} {[%emt 00:00:03]} 33. b4 {[%clk 00:21:35]} {[%emt
00:00:10]} h5 {[%clk 00:47:24]} {[%emt 00:00:15]} 34. c5 {[%clk 00:21:01]}
{[%emt 00:00:43]} bxc5 {[%clk 00:47:22]} {[%emt 00:00:12]} 35. Rxc5 {[%clk
00:21:00]} {[%emt 00:00:10]} g5 {[%clk 00:47:27]} {[%emt 00:00:05]} 36. Rd6+
{[%clk 00:21:06]} {[%emt 00:00:03]} Kb7 {[%clk 00:47:19]} {[%emt 00:00:19]} 37.
Rxg5 {[%clk 00:20:56]} {[%emt 00:00:19]} a5 {[%clk 00:46:14]} {[%emt 00:01:15]}
38. Rg7+ {[%clk 00:20:53]} {[%emt 00:00:13]} Kc8 {[%clk 00:46:19]} {[%emt
00:00:06]} 39. Rf6 {[%clk 00:20:58]} {[%emt 00:00:06]} Kd8 {[%clk 00:46:05]}
{[%emt 00:00:24]} 40. Rf8# {[%clk 00:20:48]} {[%emt 00:00:07]} 1-0

[Event "St Kilda East and Caulfield Chess Club T3 2025 Under 1600 Mondays"]
[Site "St Kilda East, Australia"]
[Date "2025.08.04"]
[Round "2.1"]
[White "Beckman, John"]
[Black "Yu, Brandon"]
[Result "0-1"]
[TimeControl "60 minutes per player per game plus 10 secionds per move from move one"]
[WhiteElo "1201"]
[BlackElo "816"]

1. e4 {[%clk 01:00:00]} {[%emt 00:00:04]} d5 {[%clk 00:59:59]} {[%emt
00:00:39]} 2. e5 {[%clk 00:59:46]} {[%emt 00:00:32]} Nc6 {[%clk 00:59:57]}
{[%emt 00:00:12]} 3. d4 {[%clk 00:59:37]} {[%emt 00:00:19]} f6 {[%clk
00:59:42]} {[%emt 00:00:26]} 4. f4 {[%clk 00:58:30]} {[%emt 00:01:16]} Bf5
{[%clk 00:59:23]} {[%emt 00:00:29]} 5. Bb5 {[%clk 00:55:02]} {[%emt 00:03:38]}
Qd7 {[%clk 00:58:28]} {[%emt 00:01:06]} 6. Nc3 {[%clk 00:54:32]} {[%emt
00:00:40]} a6 {[%clk 00:57:41]} {[%emt 00:00:57]} 7. Ba4 {[%clk 00:54:10]}
{[%emt 00:00:31]} e6 {[%clk 00:56:55]} {[%emt 00:00:56]} 8. a3 {[%clk
00:52:14]} {[%emt 00:02:06]} b5 {[%clk 00:55:38]} {[%emt 00:01:27]} 9. Bb3
{[%clk 00:51:48]} {[%emt 00:00:34]} Nge7 {[%clk 00:55:25]} {[%emt 00:00:24]} 10.
Be3 {[%clk 00:47:18]} {[%emt 00:04:40]} Na5 {[%clk 00:52:54]} {[%emt 00:02:39]}
11. Ba2 {[%clk 00:42:56]} {[%emt 00:04:32]} Nc4 {[%clk 00:50:51]} {[%emt
00:02:14]} 12. Bc1 {[%clk 00:42:27]} {[%emt 00:00:38]} Nc6 {[%clk 00:49:56]}
{[%emt 00:01:06]} 13. b3 {[%clk 00:41:03]} {[%emt 00:01:34]} Nb6 {[%clk
00:49:56]} {[%emt 00:00:11]} 14. h3 {[%clk 00:40:09]} {[%emt 00:01:02]} Qf7
{[%clk 00:47:31]} {[%emt 00:02:35]} 15. Nf3 {[%clk 00:38:36]} {[%emt 00:01:43]}
Qg6 {[%clk 00:46:13]} {[%emt 00:01:28]} 16. Nh4 {[%clk 00:37:51]} {[%emt
00:00:55]} Qg3+ {[%clk 00:46:05]} {[%emt 00:00:17]} 17. Kf1 {[%clk 00:36:26]}
{[%emt 00:01:34]} Qxh4 {[%clk 00:45:33]} {[%emt 00:00:43]} 18. Qf3 {[%clk
00:35:48]} {[%emt 00:00:48]} Nxd4 {[%clk 00:44:51]} {[%emt 00:00:52]} 19. Qd1
{[%clk 00:33:39]} {[%emt 00:02:20]} Nxc2 {[%clk 00:43:51]} {[%emt 00:01:10]} 20.
Rb1 {[%clk 00:32:55]} {[%emt 00:00:50]} Bc5 {[%clk 00:43:46]} {[%emt 00:00:19]}
21. Qd2 {[%clk 00:23:34]} {[%emt 00:09:30]} Ne3+ {[%clk 00:43:16]} {[%emt
00:00:41]} 22. Qxe3 {[%clk 00:21:45]} {[%emt 00:01:59]} Bxe3 {[%clk 00:43:15]}
{[%emt 00:00:12]} 23. Bxe3 {[%emt 00:00:10]} Bxb1 {[%clk 00:42:21]} {[%emt
00:01:00]} 24. Bxb1 {[%clk 00:21:30]} {[%emt 00:00:27]} O-O-O {[%clk 00:42:20]}
{[%emt 00:00:11]} 25. Ne2 {[%clk 00:19:27]} {[%emt 00:02:13]} fxe5 {[%clk
00:42:11]} {[%emt 00:00:20]} 26. g3 {[%clk 00:18:43]} {[%emt 00:00:53]} Qe7
{[%clk 00:41:59]} {[%emt 00:00:22]} 27. Bc1 {[%clk 00:15:54]} {[%emt 00:03:00]}
d4 {[%clk 00:41:09]} {[%emt 00:01:00]} 28. Kg2 {[%clk 00:14:47]} {[%emt
00:01:16]} Nd5 {[%clk 00:40:34]} {[%emt 00:00:45]} 29. Bb2 {[%clk 00:13:50]}
{[%emt 00:01:06]} d3 {[%clk 00:40:00]} {[%emt 00:00:44]} 30. Nc3 {[%clk
00:12:17]} {[%emt 00:01:43]} exf4 {[%clk 00:39:29]} {[%emt 00:00:42]} 31. gxf4
{[%clk 00:11:52]} {[%emt 00:00:35]} Nxc3 {[%clk 00:39:19]} {[%emt 00:00:20]} 32.
Bxc3 {[%clk 00:11:48]} {[%emt 00:00:13]} Qxa3 {[%clk 00:39:18]} {[%emt
00:00:10]} 33. Be5 {[%clk 00:07:04]} {[%emt 00:04:56]} d2 {[%clk 00:39:00]}
{[%emt 00:00:28]} 34. Bc2 {[%clk 00:06:40]} {[%emt 00:00:31]} Qc1 {[%clk
00:38:40]} {[%emt 00:00:32]} 35. Bd1 {[%clk 00:06:26]} {[%emt 00:00:24]} Rd3
{[%clk 00:38:07]} {[%emt 00:00:43]} 36. Kf2 {[%clk 00:05:50]} {[%emt 00:00:45]}
Rxh3 {[%clk 00:37:49]} {[%emt 00:00:30]} 37. Rg1 {[%clk 00:05:44]} {[%emt
00:00:14]} Rd8 {[%clk 00:37:18]} {[%emt 00:00:43]} 38. Ke2 {[%clk 00:04:51]}
{[%emt 00:01:01]} Rdd3 {[%clk 00:37:10]} {[%emt 00:00:19]} 39. Bxg7 {[%clk
00:03:47]} {[%emt 00:01:14]} Rhe3+ {[%clk 00:37:09]} {[%emt 00:00:11]} 40. Kf2
{[%clk 00:03:16]} {[%emt 00:00:39]} Rf3+ {[%clk 00:36:18]} {[%emt 00:01:02]} 41.
Bxf3 {[%clk 00:02:30]} {[%emt 00:00:56]} Rxf3+ {[%clk 00:36:24]} {[%emt
00:00:04]} 42. Kxf3 {[%clk 00:01:28]} {[%emt 00:01:11]} Qxg1 {[%clk 00:36:28]}
{[%emt 00:00:07]} 43. Be5 {[%clk 00:01:24]} {[%emt 00:00:14]} d1=Q+ {[%clk
00:36:28]} {[%emt 00:00:10]} 44. Ke4 {[%clk 00:01:18]} {[%emt 00:00:16]} Qe2#
{[%clk 00:36:14]} {[%emt 00:00:10]} 0-1